[Event "44th Chess Olympiad Open 2022"]
[Site "Chennai"]
[Date "2022.08.08"]
[Round "10.7"]
[White "Onyshchuk, Volodymyr"]
[Black "Kantor, Gergely"]
[Result "1-0"]
[WhiteElo "2612"]
[BlackElo "2582"]
[Annotator "RC"]
[PlyCount "55"]
[EventDate "2022.??.??"]
[TimeControl "60"]

1. e4 {[%emt 0:00:04]} e5 {[%emt 0:00:05]} 2. Nf3 {[%emt 0:00:04]} Nc6 {
[%emt 0:00:04]} 3. Bb5 {[%emt 0:00:17]} a6 {[%emt 0:00:23]} 4. Ba4 {[%emt 0:00:
00]} Nf6 {[%emt 0:00:03]} 5. O-O {[%emt 0:00:05]} Nxe4 {[%emt 0:00:10]} 6. d4 {
[%emt 0:02:48]} b5 {[%emt 0:00:16]} 7. Bb3 {[%emt 0:00:07]} d5 {[%emt 0:00:03]}
8. dxe5 {[%emt 0:01:04]} Be6 {[%emt 0:00:25]} 9. c3 {[%emt 0:03:23]} Bc5 {
[%emt 0:00:13]} 10. a4 {[%emt 0:14:21]} O-O {[%emt 0:09:58]} 11. axb5 {[%emt 0:
00:00]} axb5 {[%emt 0:00:31]} 12. Rxa8 {[%emt 0:00:04]} Qxa8 {[%emt 0:00:16]}
13. Nbd2 {[%emt 0:06:34]} Rd8 {[%emt 0:45:21]} 14. Qe2 {[%emt 0:06:15]} Nxf2 {
[%emt 0:04:22]} 15. Rxf2 {[%emt 0:01:10]} Qa1 {[%emt 0:00:22]} 16. Qe1 {
[%emt 0:04:09]} Bf5 {[%emt 0:15:42]} 17. Nf1 {[%emt 0:09:49]} Bxf2+ {[%emt 0:
00:00]} 18. Kxf2 {[%emt 0:00:08]} Be4 {[%emt 0:04:41]} 19. e6 {[%emt 0:15:59]}
fxe6 {[%emt 0:01:50]} 20. Ng3 {[%emt 0:00:03]} Na5 {[%emt 0:08:07]} 21. Bc2 {
[%emt 0:00:59]} Bxc2 {[%emt 0:01:08]} 22. Qxe6+ {[%emt 0:00:05]} Kh8 {[%emt 0:
00:00]} 23. Bh6 {[%emt 0:00:09]} Rg8 {[%emt 0:02:03]} 24. Bxg7+ {[%emt 0:00:53]
} Kxg7 {[%emt 0:00:27]} 25. Qe7+ {[%emt 0:00:28]} Kh6 {[%emt 0:00:38]} 26. Qf6+
{[%emt 0:00:08]} Rg6 {[%emt 0:01:53]} 27. Qf8+ {[%emt 0:00:05]} Rg7 {[%emt 0:
00:00]} 28. Qf4+ {[%emt 0:00:03]} 1-0

[Event "44th Chess Olympiad Open 2022"]
[Site "Chennai"]
[Date "2022.08.08"]
[Round "10.7"]
[White "Banusz, Tamas"]
[Black "Shevchenko, Kirill"]
[Result "1/2-1/2"]
[WhiteElo "2611"]
[BlackElo "2654"]
[Annotator "RC"]
[PlyCount "120"]
[EventDate "2022.??.??"]
[TimeControl "60"]

1. Nf3 {[%emt 0:00:04]} c5 {[%emt 0:00:23]} 2. c4 {[%emt 0:00:11]} Nf6 {
[%emt 0:00:26]} 3. Nc3 {[%emt 0:00:23]} e6 {[%emt 0:00:21]} 4. g3 {[%emt 0:00:
00]} b6 {[%emt 0:00:25]} 5. Bg2 {[%emt 0:00:22]} Bb7 {[%emt 0:00:06]} 6. O-O {
[%emt 0:00:24]} Be7 {[%emt 0:00:04]} 7. d4 {[%emt 0:01:10]} cxd4 {[%emt 0:00:
00]} 8. Qxd4 {[%emt 0:00:08]} O-O {[%emt 0:00:38]} 9. Rd1 {[%emt 0:02:05]} d6 {
[%emt 0:01:28]} 10. b3 {[%emt 0:06:36]} Nbd7 {[%emt 0:03:47]} 11. e4 {[%emt 0:
00:00]} Nc5 {[%emt 0:12:25]} 12. e5 {[%emt 0:04:01]} dxe5 {[%emt 0:11:52]} 13.
Qxe5 {[%emt 0:02:42]} Ncd7 {[%emt 0:17:21]} 14. Qe2 {[%emt 0:02:28]} a6 {
[%emt 0:02:50]} 15. Ne5 {[%emt 0:09:35]} Bxg2 {[%emt 0:05:26]} 16. Kxg2 {
[%emt 0:00:08]} Qc8 {[%emt 0:01:47]} 17. Nxd7 {[%emt 0:02:15]} Nxd7 {[%emt 0:
00:00]} 18. Bf4 {[%emt 0:01:00]} Ra7 {[%emt 0:11:55]} 19. Rac1 {[%emt 0:04:25]}
Qc6+ {[%emt 0:01:48]} 20. Qf3 {[%emt 0:02:48]} Rc8 {[%emt 0:02:55]} 21. Qxc6 {
[%emt 0:09:53]} Rxc6 {[%emt 0:00:02]} 22. h4 {[%emt 0:00:57]} h5 {[%emt 0:00:
00]} 23. Rc2 {[%emt 0:04:28]} Bb4 {[%emt 0:07:56]} 24. Ne4 {[%emt 0:10:56]} e5
{[%emt 0:00:44]} 25. Bd2 {[%emt 0:01:07]} Be7 {[%emt 0:05:19]} 26. Nc3 {
[%emt 0:04:35]} Bc5 {[%emt 0:03:08]} 27. Nd5 {[%emt 0:00:18]} a5 {[%emt 0:00:
00]} 28. Be3 {[%emt 0:01:35]} f6 {[%emt 0:00:18]} 29. Rcd2 {[%emt 0:00:47]} Kf8
{[%emt 0:03:08]} 30. f4 {[%emt 0:01:45]} e4 {[%emt 0:00:38]} 31. f5 {[%emt 0:
00:00]} Ne5 {[%emt 0:00:24]} 32. Bxc5+ {[%emt 0:03:16]} bxc5 {[%emt 0:00:00]}
33. Nf4 {[%emt 0:01:58]} Rc8 {[%emt 0:00:19]} 34. Re2 {[%emt 0:01:50]} a4 {
[%emt 0:00:09]} 35. Nxh5 {[%emt 0:01:41]} axb3 {[%emt 0:00:06]} 36. axb3 {
[%emt 0:00:01]} Rb8 {[%emt 0:02:03]} 37. Nf4 {[%emt 0:02:53]} Kf7 {[%emt 0:00:
00]} 38. Ne6 {[%emt 0:03:31]} Rxb3 {[%emt 0:00:01]} 39. Nxc5 {[%emt 0:00:08]}
Rb4 {[%emt 0:00:40]} 40. Nxe4 {[%emt 0:02:22]} Nxc4 {[%emt 0:00:11]} 41. Kh3 {
[%emt 0:11:20]} Rb8 {[%emt 0:02:54]} 42. Rc1 {[%emt 0:02:08]} Ne5 {[%emt 0:00:
00]} 43. Rec2 {[%emt 0:01:12]} Kg8 {[%emt 0:11:09]} 44. Rc7 {[%emt 0:04:53]}
Rxc7 {[%emt 0:01:12]} 45. Rxc7 {[%emt 0:00:01]} Nf7 {[%emt 0:00:11]} 46. g4 {
[%emt 0:03:34]} Rb3+ {[%emt 0:01:38]} 47. Rc3 {[%emt 0:02:55]} Rxc3+ {[%emt 0:
00:00]} 48. Nxc3 {[%emt 0:00:02]} Ne5 {[%emt 0:00:06]} 49. Nd5 {[%emt 0:00:52]}
Kf7 {[%emt 0:00:05]} 50. Nf4 {[%emt 0:02:06]} Nc4 {[%emt 0:00:26]} 51. Kg3 {
[%emt 0:00:31]} Nd6 {[%emt 0:00:22]} 52. Kf3 {[%emt 0:00:19]} Nc4 {[%emt 0:00:
00]} 53. Ke4 {[%emt 0:01:22]} Ne5 {[%emt 0:04:09]} 54. g5 {[%emt 0:00:27]} fxg5
{[%emt 0:00:09]} 55. hxg5 {[%emt 0:00:11]} Nc4 {[%emt 0:00:29]} 56. g6+ {
[%emt 0:00:59]} Kf6 {[%emt 0:05:09]} 57. Nh5+ {[%emt 0:00:56]} Kg5 {[%emt 0:00:
00]} 58. Nxg7 {[%emt 0:00:02]} Nd6+ {[%emt 0:00:04]} 59. Ke5 {[%emt 0:00:05]}
Nxf5 {[%emt 0:00:04]} 60. Nxf5 {[%emt 0:00:05]} Kxg6 {[%emt 0:00:04]} 1/2-1/2

[Event "44th Chess Olympiad Open 2022"]
[Site "Chennai"]
[Date "2022.08.08"]
[Round "10.7"]
[White "Erdos, Viktor"]
[Black "Korobov, Anton"]
[Result "1-0"]
[WhiteElo "2586"]
[BlackElo "2692"]
[Annotator "TA"]
[PlyCount "37"]
[EventDate "2022.??.??"]
[TimeControl "60"]

{[%evp 9,37,14,10,0,16,-2,0,0,0,-9,0,-1,16,1,7,18,12,21,27,0,0,0,0,0,497,490,
480,498,910,894]} 1. e4 {[%emt 0:00:04]} c5 {[%emt 0:00:20]} 2. Nf3 {[%emt 0:
00:00]} d6 {[%emt 0:00:15]} 3. Bb5+ {[%emt 0:00:10]} Nd7 {[%emt 0:00:22]} 4. d4
{[%emt 0:00:12]} cxd4 {[%emt 0:00:19]} 5. Nxd4 {[%emt 0:00:06]} Ngf6 {[%emt 0:
00:00]} 6. O-O {[%emt 0:00:14] B51: Sicilian: Moscow Variation (3 Bb5+)
without 3...Bd7.} a6 {[%emt 0:01:13]} 7. Ba4 {[%emt 0:00:13]} g6 {[%emt 0:00:
00] [#]} 8. Re1 $146 {[%emt 0:10:06] The position is equal.} ({Predecessor:} 8.
c4 Bg7 9. Nc3 O-O 10. Bc2 Ne5 11. b3 Bd7 12. f3 b5 13. cxb5 axb5 14. Be3 {
0-1 (49) Kozak,A (2532)-Bok,B (2616) Chess.com INT 2022}) 8... b5 {[%emt 0:00:
00]} 9. Bb3 {[%emt 0:00:37]} Bb7 {[%emt 0:00:05]} 10. c4 {[%emt 0:07:37]} b4 {
[%emt 0:04:58]} 11. a3 {[%emt 0:02:49]} bxa3 {[%emt 0:08:32]} (11... a5 $5 {
[%cal Rf8g7]}) 12. Rxa3 {[%emt 0:00:52]} e5 {[%emt 0:02:25]} 13. Nf3 {[%emt 0:
00:00]} Nxe4 {[%emt 0:05:48]} 14. c5 {[%emt 0:08:15]} (14. Bc2 $5 {[%cal Rc2e4]
} Nec5 15. b4 $14) 14... Ndxc5 {[%emt 0:04:28]} 15. Ba4+ {[%emt 0:10:45]} Ke7 {
[%emt 0:02:02]} 16. Bc2 {[%emt 0:01:51] Strongly threatening b4.} f5 $2 {
[%emt 0:01:09]} (16... Nf6 $11) 17. Bxe4 $18 {[%emt 0:00:38] White is clearly
winning.} Nxe4 {[%emt 0:00:51] [#]} 18. Rxe4 $1 {[%emt 0:00:04] Black must now
prevent Bg5+.} Qc7 {[%emt 0:07:40]} (18... h6 $142) (18... Ke8 19. Rb4) 19. Rc3
{[%emt 0:02:02] Weighted Error Value: White=0.04 (flawless) /Black=0.77} 1-0

[Event "44th Chess Olympiad Open 2022"]
[Site "Chennai"]
[Date "2022.08.08"]
[Round "10.8"]
[White "Keymer, Vincent"]
[Black "Boruchovsky, Avital"]
[Result "1-0"]
[WhiteElo "2686"]
[BlackElo "2551"]
[Annotator "TA"]
[PlyCount "109"]
[EventDate "2022.??.??"]
[TimeControl "60"]

{[%evp 18,109,27,24,26,22,24,24,60,54,68,48,101,73,68,64,56,38,29,35,24,21,31,
20,33,42,45,54,80,45,93,83,91,82,79,80,83,78,183,175,162,98,96,94,97,102,135,
129,131,121,142,85,84,91,230,208,231,227,222,0,220,208,323,319,302,318,307,291,
268,224,366,361,409,393,495,496,502,505,562,559,537,537,467,435,421,424,618,
605,557,554,542,516,12838,12837]} 1. c4 {[%emt 0:00:05]} e6 {[%emt 0:00:18]} 2.
Nc3 {[%emt 0:00:05]} d5 {[%emt 0:00:04]} 3. d4 {[%emt 0:00:04]} Nf6 {[%emt 0:
00:00]} 4. cxd5 {[%emt 0:00:10]} exd5 {[%emt 0:00:06]} 5. Bg5 {[%emt 0:00:07]}
c6 {[%emt 0:00:04]} 6. e3 {[%emt 0:00:24]} Bf5 {[%emt 0:00:14]} 7. Qf3 {
[%emt 0:01:33]} Bg6 {[%emt 0:00:07]} 8. Bxf6 {[%emt 0:00:03]} Qxf6 {[%emt 0:00:
00]} 9. Qxf6 {[%emt 0:00:05]} gxf6 {[%emt 0:00:05]} 10. Kd2 {[%emt 0:04:12]}
Nd7 {[%emt 0:04:51] D35: Queen's Gambit Declined: Exchange Variation.} 11. Nge2
{[%emt 0:04:40]} Nb6 {[%emt 0:13:28]} 12. Nf4 {[%emt 0:01:42] [#]} Nc4+ $146 {
[%emt 0:06:40] White has an edge.} ({Predecessor:} 12... Bd6 13. g3 Ke7 14. Rc1
a5 15. Be2 a4 16. Rhe1 a3 17. b3 Bb4 18. Kd1 Ra5 {0-1 (45) Poliakov,A (2182)
-Usmanov,V (2459) Sochi 2017}) 13. Bxc4 {[%emt 0:01:36]} dxc4 {[%emt 0:00:02]}
14. a4 {[%emt 0:08:30][%cal Ya2a4,Ya4a5] White is more active.} O-O-O {[%emt 0:
01:21]} (14... Bd6 $14) 15. a5 {[%emt 0:18:13]} Bd6 {[%emt 0:01:30] White must
now prevent ...Bxf4.} 16. Nxg6 {[%emt 0:06:42]} hxg6 {[%emt 0:00:06]} 17. Ne4 {
[%emt 0:02:22]} Bb4+ {[%emt 0:16:49]} 18. Kc2 {[%emt 0:00:42]} Rd5 {[%emt 0:00:
47]} 19. Ra4 {[%emt 0:03:50]} Be7 {[%emt 0:02:00]} 20. h3 {[%emt 0:00:00]} Rhh5
{[%emt 0:03:42]} 21. Rha1 {[%emt 0:01:16]} a6 {[%emt 0:03:35]} 22. f4 {[%emt 0:
08:53]} Rb5 {[%emt 0:07:42]} 23. Nd2 {[%emt 0:00:38] Against Rb3} (23. Rxc4
Rxa5 24. Rd1 Kc7 $11) 23... c5 {[%emt 0:06:23]} (23... Kc7 $14 {feels stronger.
}) 24. Nxc4 {[%emt 0:07:41]} cxd4 {[%emt 0:00:00]} 25. Nb6+ {[%emt 0:01:05]}
Kb8 {[%emt 0:03:20]} 26. Rxd4 {[%emt 0:00:11]} (26. exd4 Bd8 $14) 26... Rhc5+ {
[%emt 0:00:23]} 27. Rc4 {[%emt 0:04:19]} (27. Kd3 {is interesting.} Rc6 28. Rd7
Bc5 29. Nc4) 27... Rxa5 {[%emt 0:01:07]} (27... Rxc4+ $16 28. Nxc4 Kc7) 28.
Rxa5 $18 {[%emt 0:01:31]} Rxa5 $16 {[%emt 0:00:02] Endgame KRB-KRN} 29. Nd7+ {
[%emt 0:00:10]} (29. g4 $1 $18) 29... Ka7 {[%emt 0:01:22]} 30. Re4 {[%emt 0:00:
05]} Bd6 {[%emt 0:04:00]} 31. Nxf6 {[%emt 0:00:16]} Ra1 {[%emt 0:00:03] [#]}
32. Re8 $1 {[%emt 0:06:50]} Rg1 {[%emt 0:01:37]} 33. g4 {[%emt 0:00:04]} Rg2+ {
[%emt 0:00:04]} 34. Kb1 {[%emt 0:00:00]} (34. Kc3 $142) 34... Rh2 {[%emt 0:06:
30]} 35. Ne4 {[%emt 0:00:00]} Bc7 {[%emt 0:07:41] [#]} (35... Bb4 $16 {keeps
fighting.}) 36. Re7 $1 $18 {[%emt 0:00:00][%csl Yc7,Yf7]} Bb6 {[%emt 0:00:48]}
37. Nd6 {[%emt 0:01:19]} ({Don't play} 37. Rxf7 $6 Rxh3 38. Nd6 Bxe3 $16) 37...
Bc5 {[%emt 0:00:02]} 38. Rxb7+ {[%emt 0:00:09]} Ka8 {[%emt 0:00:01]} 39. Rd7 {
[%emt 0:00:10] And now e4 would win.} Bxe3 {[%emt 0:04:35]} (39... Rxh3 $142
40. e4 (40. Nxf7 Bxe3 41. Rd6 Ka7 $16) 40... Rf3) 40. Rxf7 {[%emt 0:00:06]} ({
Not} 40. Nxf7 Bxf4 41. Rd8+ Ka7 $14) 40... Rxh3 {[%emt 0:01:00]} 41. Nc4 {
[%emt 0:37:04]} Bd4 {[%emt 0:00:00]} 42. Rd7 {[%emt 0:00:00]} Bc5 {[%emt 0:00:
00]} 43. Rd5 {[%emt 0:00:00]} Bg1 {[%emt 0:00:00]} (43... Bf2 {was necessary.}
44. Ne5 Rh4) 44. Ne5 {[%emt 0:00:00]} Rh4 {[%emt 0:00:00]} 45. Rd6 {[%emt 0:00:
00]} Be3 {[%emt 0:00:00]} 46. Rxa6+ {[%emt 0:00:00] White is clearly winning.}
Kb7 {[%emt 0:00:00]} 47. Ra4 {[%emt 0:00:00]} g5 {[%emt 0:00:00]} 48. f5 {
[%emt 0:00:00]} Bf4 {[%emt 0:08:01]} 49. Ng6 {[%emt 0:00:11]} Rh1+ {[%emt 0:00:
00]} 50. Ka2 {[%emt 0:00:00]} Bd6 {[%emt 0:00:00]} 51. Re4 {[%emt 0:00:00]} Rf1
{[%emt 0:00:00]} (51... Kc6 $142 52. Re3 Rf1) 52. Re6 {[%emt 0:00:00]} Kc6 {
[%emt 0:00:00]} 53. Ne7+ {[%emt 0:00:00]} Kd7 {[%emt 0:00:00]} 54. Nd5 {
[%emt 0:00:00]} Kc6 {[%emt 0:00:00]} (54... Bg3 $142 55. Nf6+ Kd8) 55. Nf6 {
[%emt 0:00:00] Weighted Error Value: White=0.07 (flawless) /Black=0.26 
(precise)} 1-0

[Event "44th Chess Olympiad Open 2022"]
[Site "Chennai"]
[Date "2022.08.08"]
[Round "10.8"]
[White "Nisipeanu, Liviu-Dieter"]
[Black "Rodshtein, Maxim"]
[Result "1/2-1/2"]
[WhiteElo "2642"]
[BlackElo "2596"]
[Annotator "RC"]
[PlyCount "58"]
[EventDate "2022.??.??"]
[TimeControl "60"]

1. d4 {[%emt 0:00:06]} Nf6 {[%emt 0:00:09]} 2. c4 {[%emt 0:00:17]} e6 {[%emt 0:
00:00]} 3. Nc3 {[%emt 0:00:06]} Bb4 {[%emt 0:00:05]} 4. e3 {[%emt 0:00:06]} O-O
{[%emt 0:00:18]} 5. Bd3 {[%emt 0:00:05]} d5 {[%emt 0:00:45]} 6. a3 {[%emt 0:00:
00]} Bxc3+ {[%emt 0:00:42]} 7. bxc3 {[%emt 0:00:06]} dxc4 {[%emt 0:01:42]} 8.
Bxc4 {[%emt 0:00:08]} c5 {[%emt 0:00:04]} 9. Nf3 {[%emt 0:00:37]} Qc7 {[%emt 0:
00:00]} 10. Be2 {[%emt 0:00:08]} Nc6 {[%emt 0:01:30]} 11. O-O {[%emt 0:04:47]}
e5 {[%emt 0:02:08]} 12. h3 {[%emt 0:12:02]} cxd4 {[%emt 0:22:28]} 13. cxd4 {
[%emt 0:00:35]} exd4 {[%emt 0:00:09]} 14. Nxd4 {[%emt 0:09:00]} Nxd4 {[%emt 0:
00:00]} 15. Qxd4 {[%emt 0:02:51]} Rd8 {[%emt 0:00:50]} 16. Qc4 {[%emt 0:05:09]}
Qxc4 {[%emt 0:10:30]} 17. Bxc4 {[%emt 0:00:06]} Ne4 {[%emt 0:06:42]} 18. Bb2 {
[%emt 0:16:55]} Nd2 {[%emt 0:08:20]} 19. Rfc1 {[%emt 0:00:49]} Nxc4 {[%emt 0:
00:00]} 20. Rxc4 {[%emt 0:00:05]} Be6 {[%emt 0:00:43]} 21. Rc7 {[%emt 0:04:59]}
b5 {[%emt 0:03:40]} 22. Bd4 {[%emt 0:07:11]} a6 {[%emt 0:01:06]} 23. Rac1 {
[%emt 0:00:09]} Bc4 {[%emt 0:01:47]} 24. Kh2 {[%emt 0:00:28]} Rac8 {[%emt 0:00:
00]} 25. Ra7 {[%emt 0:00:11]} Ra8 {[%emt 0:05:23]} 26. Rc7 {[%emt 0:01:57]}
Rac8 {[%emt 0:00:19]} 27. Ra7 {[%emt 0:00:06]} Ra8 {[%emt 0:00:05]} 28. Rc7 {
[%emt 0:00:06]} Rac8 {[%emt 0:00:06]} 29. Ra7 {[%emt 0:00:05]} Ra8 {[%emt 0:00:
00]} 1/2-1/2

[Event "44th Chess Olympiad Open 2022"]
[Site "Chennai"]
[Date "2022.08.08"]
[Round "10.8"]
[White "Nabaty, Tamir"]
[Black "Bluebaum, Matthias"]
[Result "0-1"]
[WhiteElo "2631"]
[BlackElo "2673"]
[Annotator "RC"]
[PlyCount "98"]
[EventDate "2022.??.??"]
[TimeControl "60"]

1. d4 {[%emt 0:00:02]} Nf6 {[%emt 0:00:14]} 2. Nf3 {[%emt 0:00:08]} d5 {
[%emt 0:00:09]} 3. c4 {[%emt 0:00:12]} e6 {[%emt 0:00:18]} 4. e3 {[%emt 0:00:
00]} b6 {[%emt 0:04:24]} 5. a3 {[%emt 0:01:09]} Bd6 {[%emt 0:02:26]} 6. b4 {
[%emt 0:00:34]} c5 {[%emt 0:06:17]} 7. cxd5 {[%emt 0:02:56]} exd5 {[%emt 0:00:
00]} 8. bxc5 {[%emt 0:03:26]} bxc5 {[%emt 0:00:30]} 9. dxc5 {[%emt 0:00:07]}
Bxc5 {[%emt 0:00:41]} 10. Bb5+ {[%emt 0:00:25]} Bd7 {[%emt 0:03:47]} 11. Bxd7+
{[%emt 0:00:09]} Nbxd7 {[%emt 0:01:17]} 12. O-O {[%emt 0:00:54]} O-O {[%emt 0:
00:00]} 13. Nbd2 {[%emt 0:12:52]} Rb8 {[%emt 0:06:53]} 14. Ra2 {[%emt 0:02:04]}
Qb6 {[%emt 0:04:00]} 15. Bb2 {[%emt 0:04:22]} Rfc8 {[%emt 0:04:25]} 16. Ba1 {
[%emt 0:06:04]} Qa6 {[%emt 0:05:28]} 17. Nd4 {[%emt 0:06:04]} Bf8 {[%emt 0:00:
00]} 18. Ne2 {[%emt 0:09:59]} Bd6 {[%emt 0:05:14]} 19. Nf3 {[%emt 0:08:43]} Qc4
{[%emt 0:02:32]} 20. Nc3 {[%emt 0:00:24]} Ne5 {[%emt 0:06:05]} 21. Nd4 {
[%emt 0:01:02]} Bc5 {[%emt 0:11:00]} 22. Rd2 {[%emt 0:03:46]} Bxa3 {[%emt 0:00:
00]} 23. Nf5 {[%emt 0:06:14]} Ng6 {[%emt 0:06:55]} 24. Nxg7 {[%emt 0:03:12]}
Kxg7 {[%emt 0:10:29]} 25. Nxd5 {[%emt 0:00:17]} Be7 {[%emt 0:02:20]} 26. Nxe7 {
[%emt 0:11:50]} Nxe7 {[%emt 0:00:02]} 27. Rd6 {[%emt 0:00:07]} Neg8 {[%emt 0:
00:00]} 28. Qf3 {[%emt 0:01:17]} Qh4 {[%emt 0:02:13]} 29. Rd4 {[%emt 0:09:41]}
Qh6 {[%emt 0:00:01]} 30. Qg3+ {[%emt 0:00:21]} Kf8 {[%emt 0:02:50]} 31. Qd6+ {
[%emt 0:01:11]} Kg7 {[%emt 0:01:46]} 32. Rg4+ {[%emt 0:03:19]} Kh8 {[%emt 0:00:
00]} 33. Rd1 {[%emt 0:00:49]} Rb6 {[%emt 0:00:53]} 34. Qd7 {[%emt 0:00:11]} Qf8
{[%emt 0:00:32]} 35. h4 {[%emt 0:01:05]} Rcc6 {[%emt 0:00:59]} 36. Qf5 {
[%emt 0:02:10]} Nh6 {[%emt 0:00:51]} 37. Qg5 {[%emt 0:01:12]} Nhxg4 {[%emt 0:
00:00]} 38. Qxg4 {[%emt 0:00:03]} Rd6 {[%emt 0:00:33]} 39. Bd4 {[%emt 0:01:00]}
Rbc6 {[%emt 0:00:46]} 40. Qf4 {[%emt 0:00:29]} Kg8 {[%emt 0:00:30]} 41. Rb1 {
[%emt 0:00:48]} h6 {[%emt 0:06:03]} 42. Be5 {[%emt 0:01:34]} Re6 {[%emt 0:00:
00]} 43. Bd4 {[%emt 0:04:24]} a5 {[%emt 0:01:57]} 44. h5 {[%emt 0:03:38]} Nxh5
{[%emt 0:02:26]} 45. Qf5 {[%emt 0:03:53]} Ng7 {[%emt 0:00:55]} 46. Qxa5 {
[%emt 0:00:07]} Qc8 {[%emt 0:00:46]} 47. f4 {[%emt 0:02:36]} Rg6 {[%emt 0:00:
00]} 48. f5 {[%emt 0:10:47]} Nxf5 {[%emt 0:02:09]} 49. Qe5 {[%emt 0:00:07]}
Nxd4 {[%emt 0:00:09]} 0-1

[Event "44th Chess Olympiad Open 2022"]
[Site "Chennai"]
[Date "2022.08.08"]
[Round "10.8"]
[White "Postny, Evgeny"]
[Black "Kollars, Dmitrij"]
[Result "1/2-1/2"]
[WhiteElo "2564"]
[BlackElo "2648"]
[Annotator "RC"]
[PlyCount "77"]
[EventDate "2022.??.??"]
[TimeControl "60"]

1. d4 {[%emt 0:00:04]} Nf6 {[%emt 0:00:10]} 2. Bg5 {[%emt 0:00:11]} d5 {
[%emt 0:00:47]} 3. e3 {[%emt 0:00:11]} c5 {[%emt 0:00:24]} 4. Bxf6 {[%emt 0:00:
00]} gxf6 {[%emt 0:00:14]} 5. dxc5 {[%emt 0:00:33]} e6 {[%emt 0:00:35]} 6. c4 {
[%emt 0:00:37]} dxc4 {[%emt 0:00:27]} 7. Nd2 {[%emt 0:00:19]} c3 {[%emt 0:00:
00]} 8. bxc3 {[%emt 0:00:10]} Nd7 {[%emt 0:02:11]} 9. c6 {[%emt 0:03:00]} bxc6
{[%emt 0:00:18]} 10. Ngf3 {[%emt 0:00:22]} f5 {[%emt 0:02:47]} 11. Be2 {
[%emt 0:11:40]} Bg7 {[%emt 0:10:03]} 12. Qc2 {[%emt 0:00:44]} O-O {[%emt 0:00:
00]} 13. O-O {[%emt 0:00:41]} c5 {[%emt 0:06:51]} 14. e4 {[%emt 0:09:16]} Qf6 {
[%emt 0:10:58]} 15. exf5 {[%emt 0:09:18]} exf5 {[%emt 0:00:22]} 16. Rab1 {
[%emt 0:04:44]} Re8 {[%emt 0:04:00]} 17. Bd3 {[%emt 0:09:35]} Nf8 {[%emt 0:00:
00]} 18. Nc4 {[%emt 0:03:45]} Be6 {[%emt 0:04:57]} 19. Nd6 {[%emt 0:09:52]}
Red8 {[%emt 0:01:09]} 20. Nb7 {[%emt 0:00:09]} Rdc8 {[%emt 0:02:47]} 21. Nd6 {
[%emt 0:00:37]} Rd8 {[%emt 0:00:51]} 22. Nb7 {[%emt 0:00:09]} c4 {[%emt 0:00:
00]} 23. Be2 {[%emt 0:00:17]} Rdc8 {[%emt 0:00:27]} 24. Nd4 {[%emt 0:02:44]}
Bd7 {[%emt 0:04:20]} 25. Bf3 {[%emt 0:07:44]} Rab8 {[%emt 0:07:59]} 26. Na5 {
[%emt 0:06:44]} Rb6 {[%emt 0:00:00]} 27. Qe2 {[%emt 0:06:05]} Ne6 {[%emt 0:00:
00]} 28. Nxc4 {[%emt 0:01:19]} Nxd4 {[%emt 0:07:39]} 29. cxd4 {[%emt 0:00:05]}
Rxb1 {[%emt 0:00:03]} 30. Rxb1 {[%emt 0:00:05]} Qxd4 {[%emt 0:00:12]} 31. Rd1 {
[%emt 0:03:26]} Qxc4 {[%emt 0:00:09]} 32. Qxc4 {[%emt 0:00:24]} Rxc4 {[%emt 0:
00:00]} 33. Rxd7 {[%emt 0:00:02]} Bd4 {[%emt 0:01:55]} 34. g3 {[%emt 0:03:19]}
Bb6 {[%emt 0:00:30]} 35. Bd5 {[%emt 0:02:20]} Rc7 {[%emt 0:00:25]} 36. Bxf7+ {
[%emt 0:01:50]} Kg7 {[%emt 0:00:08]} 37. Be6+ {[%emt 0:00:12]} Kf6 {[%emt 0:00:
00]} 38. Rxc7 {[%emt 0:00:39]} Bxc7 {[%emt 0:00:06]} 39. Bb3 {[%emt 0:00:06]}
1/2-1/2

[Event "44th Chess Olympiad Open 2022"]
[Site "Chennai"]
[Date "2022.08.08"]
[Round "10.9"]
[White "Adams, Michael"]
[Black "Vocaturo, Daniele"]
[Result "1/2-1/2"]
[WhiteElo "2696"]
[BlackElo "2616"]
[Annotator "TA"]
[PlyCount "73"]
[EventDate "2022.??.??"]
[TimeControl "60"]

{[%evp 15,73,26,25,7,5,8,6,0,0,0,37,41,46,44,46,44,44,44,44,44,56,56,53,44,44,
54,52,41,35,25,26,28,58,22,43,34,28,48,33,0,0,-26,30,26,37,0,22,0,0,0,0,0,0,0,
0,0,0,0,0,6]} 1. e4 {[%emt 0:00:04]} c5 {[%emt 0:00:39]} 2. Nf3 {[%emt 0:00:07]
} d6 {[%emt 0:00:28]} 3. Bb5+ {[%emt 0:00:10]} Bd7 {[%emt 0:01:04]} 4. Bxd7+ {
[%emt 0:00:09]} Qxd7 {[%emt 0:00:06]} 5. c4 {[%emt 0:01:04]} Nf6 {[%emt 0:00:
00]} 6. Nc3 {[%emt 0:00:18]} Nc6 {[%emt 0:00:28]} 7. d4 {[%emt 0:01:53]} cxd4 {
[%emt 0:00:16]} 8. Nxd4 {[%emt 0:00:05]} g6 {[%emt 0:00:33]} 9. h3 {[%emt 0:00:
00] B52: Sicilian: Moscow Variation with 3...Bd7.} Nxd4 {[%emt 0:03:34]} 10.
Qxd4 {[%emt 0:00:04]} Bg7 {[%emt 0:00:08]} 11. O-O {[%emt 0:02:02]} O-O {
[%emt 0:00:49][%cal Yf6g4]} 12. Qd3 {[%emt 0:00:41]} Rac8 {[%emt 0:07:38]} 13.
Be3 {[%emt 0:05:13]} Qc6 {[%emt 0:05:27]} 14. b3 {[%emt 0:01:05] [#]} Nd7 $146
{[%emt 0:00:33]} ({Predecessor:} 14... a6 15. Rac1 Rfe8 16. Nd5 Nxd5 17. exd5
Qd7 18. a4 Bf6 19. Rfd1 Rb8 20. a5 Rbc8 {½-½ (81) Hasan,M (2355)-S,M (2126)
Dhaka 2015}) 15. f3 {[%emt 0:06:57]} Nc5 {[%emt 0:06:15]} 16. Qd2 {[%emt 0:00:
00]} a6 {[%emt 0:01:44]} 17. Rac1 {[%emt 0:04:54]} e6 {[%emt 0:03:50]} 18. Rfd1
{[%emt 0:02:36]} Be5 {[%emt 0:01:08]} 19. Kh1 {[%emt 0:07:02]} Rfd8 {[%emt 0:
00:00]} 20. Bd4 {[%emt 0:03:03]} Qc7 {[%emt 0:04:59]} 21. Qe3 {[%emt 0:02:50]}
Nd7 {[%emt 0:08:27][%cal Yc5d7,Yd7b8,Yb8c6]} 22. f4 {[%emt 0:03:54][%cal Yf3f4,
Yf4f5]} Bxd4 {[%emt 0:01:06]} 23. Qxd4 {[%emt 0:01:54]} Nb8 {[%emt 0:00:33]}
24. f5 {[%emt 0:07:39]} Nc6 {[%emt 0:02:04]} 25. Qf6 {[%emt 0:05:18]} Qe7 {
[%emt 0:03:01]} 26. Qxe7 {[%emt 0:00:07]} Nxe7 {[%emt 0:00:00]} 27. f6 {
[%emt 0:07:04]} Nc6 {[%emt 0:00:08]} 28. Rd2 {[%emt 0:01:54]} Kf8 {[%emt 0:16:
45]} ({Better is} 28... Ne5) 29. Rcd1 $11 {[%emt 0:05:59]} Ke8 {[%emt 0:01:11]
[%cal Yb7b5]} 30. Na4 {[%emt 0:06:42]} b5 {[%emt 0:04:37] The position is
equal.} 31. Nb2 {[%emt 0:03:05]} Ne5 {[%emt 0:02:19]} 32. Rxd6 {[%emt 0:01:14]}
(32. Kh2 {keeps more tension.} Nd7 33. Rxd6 Nxf6 34. e5) 32... Rxd6 {[%emt 0:
00:53]} 33. Rxd6 {[%emt 0:00:04]} bxc4 {[%emt 0:00:09]} 34. Nxc4 {[%emt 0:01:
05]} Nxc4 {[%emt 0:00:54]} 35. bxc4 {[%emt 0:00:05]} Rxc4 {[%emt 0:00:00]} 36.
Rxa6 {[%emt 0:01:17] With the idea e5.} e5 {[%emt 0:03:31]} 37. Ra7 {[%emt 0:
06:00] Weighted Error Value: White=0.10 (very precise) /Black=0.09 (flawless)}
1/2-1/2